Workbook

Sheet 1. Info
AB1: Algoma Power Inc.
AB2: Atikokan Hydro Inc.
AB3: Attawapiskat Power Corporation
AB4: Bluewater Power Distribution Corporation
AB5: Brantford Power Inc.
AB6: Burlington Hydro Inc.
AB7: Canadian Niagara Power Inc.
AB8: Centre Wellington Hydro Ltd.
AB9: Chapleau Public Utilities Corporation
AB10: COLLUS PowerStream Corp.
AB11: Cooperative Hydro Embrun Inc.
AB12: E.L.K. Energy Inc.
A13: Drop-down lists are shaded blue; Input cells are shaded green. | AB13: Energy + Inc.
AB14: Enersource Hydro Mississauga Inc.
C15: Utility Name | D15: Northern Ontario Wires Inc. | AB15: Entegrus Powerlines Inc.
AB16: EnWin Utilities Ltd.
C17: Service Territory | D17: Cochrane, Iroquois Falls, Kapuskasing | AB17: Erie Thames Powerlines Corporation
AB18: Espanola Regional Hydro Distribution Corporation
C19: Assigned EB Number | D19: EB-2016-0096 | AB19: Essex Powerlines Corporation
AB20: Festival Hydro Inc.
C21: Name and Title | D21: Geoff Sutton | AB21: Fort Albany Power Corporation
AB22: Fort Frances Power Corporation
C23: Phone Number | D23: 705-272-6669 | AB23: Greater Sudbury Hydro Inc.
AB24: Grimsby Power Inc.
C25: Email Address | D25: geoffs@nowinc.ca | AB25: Guelph Hydro Electric Systems Inc.
AB26: Haldimand County Hydro Inc.
C27: Date | D27: 2017-03-07 | AB27: Halton Hills Hydro Inc.
AB28: Hearst Power Distribution Company Limited
C29: Last COS Re-based Year | D29: 2013 | AB29: Horizon Utilities Corporation
AB30: Hydro 2000 Inc.
AB31: Hydro Hawkesbury Inc.
AB32: Hydro One Brampton Networks Inc.
AB33: Hydro One Networks Inc.
AB34: Hydro One Remote Communities Inc.
AB35: Hydro Ottawa Limited
AB36: Innpower Corporation
AB37: Kashechewan Power Corporation
AB38: Kenora Hydro Electric Corporation Ltd.
AB39: Kingston Hydro Corporation
AB40: Kitchener-Wilmot Hydro Inc.
AB41: Lakefront Utilities Inc.
AB42: Lakeland Power Distribution Ltd.
AB43: London Hydro Inc.
AB44: Midland Power Utility Corporation
AB45: Milton Hydro Distribution Inc.
AB46: Newmarket-Tay Power Distribution Ltd.
AB47: Niagara Peninsula Energy Inc.
AB48: Niagara-on-the-Lake Hydro Inc.
AB49: North Bay Hydro Distribution Limited
AB50: Northern Ontario Wires Inc.
AB51: Oakville Hydro Electricity Distribution Inc.
AB52: Orangeville Hydro Limited
AB53: Orillia Power Distribution Corporation
AB54: Oshawa PUC Networks Inc.
AB55: Ottawa River Power Corporation
AB56: Peterborough Distribution Incorporated
AB57: PowerStream Inc.
AB58: PUC Distribution Inc.
AB59: Renfrew Hydro Inc.
AB60: Rideau St. Lawrence Distribution Inc.
AB61: Sioux Lookout Hydro Inc.
AB62: St. Thomas Energy Inc.
AB63: Thunder Bay Hydro Electricity Distribution Inc.
AB64: Tillsonburg Hydro Inc.
AB65: Toronto Hydro-Electric System Limited
AB66: Veridian Connections Inc.
AB67: Wasaga Distribution Inc.
AB68: Waterloo North Hydro Inc.
AB69: Welland Hydro-Electric System Corp.
AB70: Wellington North Power Inc.
AB71: West Coast Huron Energy Inc.
AB72: Westario Power Inc.
AB73: Whitby Hydro Electric Corporation
AB74: Woodstock Hydro Services Inc.

Sheet 2. Table of Contents
D20: 1. Info | I20: 6. Historical Wholesale
D22: 2. Table of Contents | I22: 7. Current Wholesale
D24: 3. Rate Classes | I24: 8. Forecast Wholesale
D26: 4. RRR Data | I26: 9. RTSR Rates to Forecast
D28: 5. UTRs and Sub-Transmission

Sheet 3. Rate Classes
C13: 1. Select the appropriate rate classes that appear on your most recent Board-Approved Tariff of Rates and Charges. 2. Enter the RTS Network and Connection Rate as it appears on the Tariff of Rates and Charges
C15: Rate Class | E15: Unit | G15: RTSR-Network | I15: RTSR-Connection
C17: Residential | E17: kWh | G17: 0.0059 | I17: 0.0027 | L17: =IF(OR(ISBLANK(C17), ISERROR(FIND("Choose", C17))=FALSE), 0, 1) -> 1 | M17: ="C" & ROW(C17) -> C17 | N17: =IF(OR(C17="General Service Intermediate Rate Class 1,000 To 4,999 kW (formerly General Service > 50 kW Customers)", C17="General Service Intermediate Rate Class 1,000 To 4,999 kW (formerly Large Use Customers)"), "x", "") ->  | W17: Choose Rate Class
C18: General Service Less Than 50 kW | E18: kWh | G18: 0.0056 | I18: 0.0026 | L18: 1 | M18: C18 | N18: =IF(OR(C18="General Service Intermediate Rate Class 1,000 To 4,999 kW (formerly General Service > 50 kW Customers)", C18="General Service Intermediate Rate Class 1,000 To 4,999 kW (formerly Large Use Customers)"), "x", "") ->  | W18: Residential
C19: General Service 50 to 4,999 kW | E19: kW | G19: 2.2317 | I19: 0.9898 | L19: 1 | M19: C19 | W19: Residential Regular
C20: Unmetered Scattered Load | E20: kWh | G20: 0.0056 | I20: 0.0026 | L20: 1 | M20: C20 | W20: Residential Urban
C21: Street Lighting | E21: kW | G21: 1.6832 | I21: 0.7651 | L21: 1 | M21: C21 | W21: Residential Urban Year-Round
C22: Choose Rate Class | L22: 0 | M22: C22 | W22: Residential Suburban
C23: Choose Rate Class | L23: 0 | M23: C23 | W23: Residential Suburban Seasonal
C24: Choose Rate Class | L24: 0 | M24: C24 | W24: Residential Suburban Year Round
C25: Choose Rate Class | L25: 0 | M25: C25 | W25: Residential - Time of Use
C26: Choose Rate Class | L26: 0 | M26: C26 | W26: Residential - Hensall
C27: Choose Rate Class | L27: 0 | M27: C27 | W27: Residential – High Density [R1]
C28: Choose Rate Class | L28: 0 | M28: C28 | W28: Residential – Normal Density [R2]
C29: Choose Rate Class | L29: 0 | M29: C29 | W29: Seasonal Residential – High Density [R3]
C30: Choose Rate Class | L30: 0 | M30: C30 | W30: Seasonal Residential – Normal Density [R4]
C31: Choose Rate Class | L31: 0 | M31: C31 | W31: Residential – Urban [UR]
C32: Choose Rate Class | L32: 0 | M32: C32 | W32: General Service Less Than 50 kW
C33: Choose Rate Class | L33: 0 | M33: C33 | W33: General Service Less Than 50 kW – Single Phase energy-billed [G1]
C34: Choose Rate Class | L34: 0 | M34: C34 | W34: General Service Less Than 50 kW – Three Phase energy-billed [G3]
C35: Choose Rate Class | L35: 0 | M35: C35 | W35: General Service Less Than 50 kW – Transmission Class energy-billed [T]
C36: Choose Rate Class | L36: 0 | M36: C36 | W36: General Service Less Than 50 kW – Urban energy-billed [UG]
C37: Choose Rate Class | L37: 0 | M37: C37 | W37: Westport Sewage Treatment Plant
C38: Choose Rate Class | L38: 0 | M38: C38 | W38: Small Commercial and USL - per meter
N39: =COUNTIF(N17:N38, "x") -> 0 | W39: Small Commercial and USL - per connection
W40: Farms – Single Phase energy-billed [F1]
W41: General Service 50 to 499 kW
W42: General Service 50 to 699 kW
W43: General Service 50 to 999 kW
W44: General Service 50 to 999 kW - Interval Metered
W45: General Service 50 to 1,000 kW
W46: General Service 50 to 1,000 kW - Interval Meters
W47: General Service 50 to 1,000 kW - Non Interval Meters
W48: General Service 50 to 1,499 kW
W49: General Service 50 to 1,499 kW - Interval Metered
W50: General Service 50 to 2,499 kW
W51: General Service 50 to 2,999 kW
W52: General Service 50 to 2,999 kW - Time of Use
W53: General Service 50 to 4,999 kW
W54: General Service 50 to 4,999 kW – Interval Metered
W55: General Service 50 to 4,999 kW - Time of Use
W56: General Service 50 to 4,999 kW (CoGeneration)
W57: General Service 50 to 4,999 kW (formerly Time of Use)
W58: General Service 500 to 4,999 kW
W59: General Service 700 to 4,999 kW
W60: General Service 1,000 to 2,999 kW
W61: General Service 1,000 to 4,999 kW
W62: General Service 1,000 to 4,999 kW - Interval Meters
W63: General Service 1,000 To 4,999 kW (co-generation)
W64: General Service Greater Than 1,000 kW
W65: General Service Intermediate Rate Class 1,000 To 4,999 kW (formerly Large Use Customers)
W66: General Service Intermediate Rate Class 1,000 To 4,999 kW (formerly General Service > 50 kW Customers)
W67: General Service 1,500 to 4,999 kW
W68: General Service Equal To Or Greater Than 1,500 kW
W69: General Service Equal To Or Greater Than 1,500 kW - Interval Metered
W70: General Service Intermediate 1,000 To 4,999 kW
W71: General Service 2,500 to 4,999 kW
W72: General Service 3,000 to 4,999 kW
W73: General Service 3,000 to 4,999 kW - Interval Metered
W74: General Service 3,000 to 4,999 kW - Intermediate Use
W75: General Service 3,000 to 4,999 kW - Time of Use
W76: Intermediate With Self Generation
W77: General Service - Commercial
W78: General Service - Institutional
W79: Farms – Three Phase energy-billed [F3]
W80: Large Use
W81: Large Use - Regular
W82: Large Use > 5000 kW
W83: Large Use - 3TS
W84: Large Use - Ford Annex
W85: Unmetered Scattered Load
W86: Sentinel Lighting
W87: Street Lighting
W88: Embedded Distributor
W89: Low Voltage Wheeling Charge Rate
W90: Stand-By
W91: Standby Power
W92: Standby Power – INTERIM APPROVAL
W93: Standby Power - APPROVED ON AN INTERIM BASIS
W94: Standby - General Service 50 - 1,000 kW
W95: Standby Power General Service 50 to 1,499 kW
W96: Standby - General Service 1,000 - 5,000 kW
W97: Standby Power General Service 1,500 to 4,999 kW
W98: Standby - Large Use
W99: Standby Power General Service Large Use
W100: Standby Distribution Service

Sheet 4. RRR Data
B15: Rate Class | C15: Rate Description | D15: Unit | E15: Rate | F15: Non-Loss Adjusted Metered kWh | G15: Non-Loss Adjusted Metered kW | H15: Applicable Loss Factor eg: (1.0325) | I15: Loss Adjusted Billed kWh
B17: Residential | C17: RTSR - Network | D17: kWh | E17: 0.0059 | F17: 41684696 | H17: 1.0713 | I17: =F17*H17 -> 44656814.82
B18: Residential | C18: RTSR - Connection | D18: kWh | E18: 0.0027 | F18: 41684696 | H18: 1.0713 | I18: =F18*H18 -> 44656814.82
B19: General Service Less Than 50 kW | C19: RTSR - Network | D19: kWh | E19: 0.0056 | F19: 19810828 | H19: 1.0713 | I19: =F19*H19 -> 21223340.04
B20: General Service Less Than 50 kW | C20: RTSR - Connection | D20: kWh | E20: 0.0026 | F20: 19810828 | H20: 1.0713 | I20: =F20*H20 -> 21223340.04
B21: General Service 50 to 4,999 kW | C21: RTSR - Network | D21: kW | E21: 2.2317 | F21: 59448871 | G21: 175839
B22: General Service 50 to 4,999 kW | C22: RTSR - Connection | D22: kW | E22: 0.9898 | F22: 59448871 | G22: 175839
B23: Unmetered Scattered Load | C23: RTSR - Network | D23: kWh | E23: 0.0056 | F23: 164178 | H23: 1.0713 | I23: =F23*H23 -> 175883.8914
B24: Unmetered Scattered Load | C24: RTSR - Connection | D24: kWh | E24: 0.0026 | F24: 164178 | H24: 1.0713 | I24: =F24*H24 -> 175883.8914
B25: Street Lighting | C25: RTSR - Network | D25: kW | E25: 1.6832 | F25: 664378 | G25: 1980
B26: Street Lighting | C26: RTSR - Connection | D26: kW | E26: 0.7651 | F26: 644378 | G26: 1980

Sheet 5. UTRs and Sub-Transmission
B18: Uniform Transmission Rates | C18: Unit | E18: 2015 | H18: 2016 | J18: 2017
B20: Rate Description | E20: Rate | H20: Rate | J20: Rate
B22: Network Service Rate | C22: kW | E22: 3.78 | H22: 3.66 | J22: 3.66
B24: Line Connection Service Rate | C24: kW | E24: 0.86 | H24: 0.87 | J24: 0.87
B26: Transformation Connection Service Rate | C26: kW | E26: 2 | H26: 2.02 | J26: 2.02
B29: Hydro One Sub-Transmission Rates | C29: Unit | E29: 2015 - 2016 | H29: 2016 | J29: 2017
E30: Jan - April 2015 | F30: May 2015 - Jan 2016 | H30: Feb - Dec 2016
B34: Rate Description | E34: Rate | H34: Rate | J34: Rate
B36: Network Service Rate | C36: kW | E36: 3.23 | F36: 3.4121 | H36: 3.3396 | J36: 3.3396
B38: Line Connection Service Rate | C38: kW | E38: 0.65 | F38: 0.7879 | H38: 0.7791 | J38: 0.7791
B40: Transformation Connection Service Rate | C40: kW | E40: 1.62 | F40: 1.8018 | H40: 1.7713 | J40: 1.7713
B42: Both Line and Transformation Connection Service Rate | C42: kW | E42: =E40+E38 -> 2.27 | F42: =SUM(F40,F38) -> 2.5897 | H42: =SUM(H40,H38) -> 2.5504 | J42: =SUM(J40,J38) -> 2.5504
B45: If needed, add extra host here. (I) | C45: Unit | E45: 2015 | H45: 2016 | J45: 2017
B49: Rate Description | E49: Rate | H49: Rate | J49: Rate
B51: Network Service Rate | C51: kW
B53: Line Connection Service Rate | C53: kW
B55: Transformation Connection Service Rate | C55: kW
B57: Both Line and Transformation Connection Service Rate | C57: kW | E57: =SUM(E53,E55) -> 0 | H57: =SUM(H53,H55) -> 0 | J57: =J55+J53 -> 0
B60: If needed, add extra host here. (II) | C60: Unit | E60: Effective January 1, 2014 | H60: Effective January 1, 2015 | J60: Effective January 1, 2016
B64: Rate Description | E64: Rate | H64: Rate | J64: Rate
B66: Network Service Rate | C66: kW
B68: Line Connection Service Rate | C68: kW
B70: Transformation Connection Service Rate | C70: kW
B72: Both Line and Transformation Connection Service Rate | C72: kW | E72: =SUM(E68,E70) -> 0 | H72: =SUM(H68,H70) -> 0 | J72: =J70+J68 -> 0
E74: Historical 2015 | H74: Current 2016 | J74: Forecast 2017
B75: Low Voltage Switchgear Credit (if applicable, enter as a negative value) | C75: $

Sheet 6. Historical Wholesale
B21: IESO | D21: Network | H21: Line Connection | L21: Transformation Connection | P21: Total Line
B22: Month | D22: Units Billed | E22: Rate | F22: Amount | H22: Units Billed | I22: Rate | J22: Amount | L22: Units Billed | M22: Rate | N22: Amount | P22: Amount
B24: January | D24: =+F24/3.78 -> 18750 | E24: =IF(D24<>0,F24/D24,0) -> 3.78 | F24: 70875 | H24: =+J24/0.86 -> 19375 | I24: =IF(H24<>0,J24/H24,0) -> 0.86 | J24: 16662.5 | L24: =+N24/2 -> 8237 | M24: =IF(L24<>0,N24/L24,0) -> 2 | N24: 16474 | P24: =J24+N24 -> 33136.5
B25: February | D25: =+F25/3.78 -> 18165 | E25: =IF(D25<>0,F25/D25,0) -> 3.78 | F25: 68663.7 | H25: =+J25/0.86 -> 18978 | I25: =IF(H25<>0,J25/H25,0) -> 0.86 | J25: 16321.08 | L25: =+N25/2 -> 7755 | M25: =IF(L25<>0,N25/L25,0) -> 2 | N25: 15510 | P25: 31831.08
B26: March | D26: 17031 | E26: 3.78 | F26: 64377.18 | H26: 17224 | I26: 0.86 | J26: 14812.64 | L26: 6892 | M26: 2 | N26: 13784 | P26: 28596.64
B27: April | D27: 13326 | E27: 3.78 | F27: 50372.28 | H27: 15678 | I27: 0.86 | J27: 13483.08 | L27: 5927 | M27: 2 | N27: 11854 | P27: 25337.08
B28: May | D28: 13197 | E28: 3.78 | F28: 49884.66 | H28: 15068 | I28: 0.86 | J28: 12958.48 | L28: 5521 | M28: 2 | N28: 11042 | P28: 24000.48
B29: June | D29: 13598 | E29: 3.78 | F29: 51400.44 | H29: 15252 | I29: 0.86 | J29: 13116.72 | L29: 5719 | M29: 2 | N29: 11438 | P29: 24554.72
B30: July | D30: 15790 | E30: 3.78 | F30: 59686.2 | H30: 16673 | I30: 0.86 | J30: 14338.78 | L30: 6911 | M30: 2 | N30: 13822 | P30: 28160.78
B31: August | D31: 14256 | E31: 3.78 | F31: 53887.68 | H31: 15446 | I31: 0.86 | J31: 13283.56 | L31: 6059 | M31: 2 | N31: 12118 | P31: 25401.56
B32: September | D32: 13879 | E32: 3.78 | F32: 52462.62 | H32: 16256 | I32: 0.86 | J32: 13980.16 | L32: 6504 | M32: 2 | N32: 13008 | P32: 26988.16
B33: October | D33: 13918 | E33: 3.78 | F33: 52610.04 | H33: 15599 | I33: 0.86 | J33: 13415.14 | L33: 5908 | M33: 2 | N33: 11816 | P33: 25231.14
B34: November | D34: 16019 | E34: 3.78 | F34: 60551.82 | H34: 16987 | I34: 0.86 | J34: 14608.82 | L34: 6673 | M34: 2 | N34: 13346 | P34: 27954.82
B35: December | D35: 16245 | E35: 3.78 | F35: 61406.1 | H35: 18006 | I35: 0.86 | J35: 15485.16 | L35: 7315 | M35: 2 | N35: 14630 | P35: 30115.16
B37: Total | D37: =SUM(D24:D35) -> 184174 | E37: =IF(D37<>0,F37/D37,0) -> 3.78 | F37: =SUM(F24:F35) -> 696177.72 | H37: =SUM(H24:H35) -> 200542 | I37: =IF(H37<>0,J37/H37,0) -> 0.86 | J37: =SUM(J24:J35) -> 172466.12 | L37: =SUM(L24:L35) -> 79421 | M37: =IF(L37<>0,N37/L37,0) -> 2 | N37: =SUM(N24:N35) -> 158842 | P37: =SUM(P24:P35) -> 331308.12
B39: Hydro One | D39: Network | H39: Line Connection | L39: Transformation Connection | P39: Total Line
B41: Month | D41: Units Billed | E41: Rate | F41: Amount | H41: Units Billed | I41: Rate | J41: Amount | L41: Units Billed | M41: Rate | N41: Amount | P41: Amount
B43: January | D43: 4347.46 | E43: =IF(D43<>0,F43/D43,0) -> 3.230003266 | F43: 14042.31 | H43: 4347.46 | I43: =IF(H43<>0,J43/H43,0) -> 0.65000023 | J43: 2825.85 | M43: =IF(L43<>0,N43/L43,0) -> 0 | P43: =J43+N43 -> 2825.85
B44: February | D44: 4722.86 | E44: =IF(D44<>0,F44/D44,0) -> 3.229998348 | F44: 15254.83 | H44: 4722.86 | I44: =IF(H44<>0,J44/H44,0) -> 0.6500002117 | J44: 3069.86 | M44: =IF(L44<>0,N44/L44,0) -> 0 | P44: 3069.86
B45: March | D45: 4213.13 | E45: 3.22999765 | F45: 13608.4 | H45: 4302.37 | I45: 0.6499998838 | J45: 2796.54 | M45: 0 | P45: 2796.54
B46: April | D46: 3713.09 | E46: 3.230002505 | F46: 11993.29 | H46: 3777.94 | I46: 0.6499997353 | J46: 2455.66 | M46: 0 | P46: 2455.66
B47: May | D47: 3192 | E47: 3.230093985 | F47: 10310.46 | H47: 3192.09 | I47: 0.6500004699 | J47: 2074.86 | M47: 0 | P47: 2074.86
B48: June | D48: 3082 | E48: 3.41206684 | F48: 10515.99 | H48: 3081.97 | I48: 0.7879018939 | J48: 2428.29 | M48: 0 | P48: 2428.29
B49: July | D49: 3046 | E49: 3.412261983 | F49: 10393.75 | H49: 3046.14 | I49: 0.7879020662 | J49: 2400.06 | M49: 0 | P49: 2400.06
B50: August | D50: 3865 | E50: 3.412354463 | F50: 13188.75 | H50: 3865.29 | I50: 0.7878994849 | J50: 3045.46 | M50: 0 | P50: 3045.46
B51: September | D51: 3309 | E51: 3.412342097 | F51: 11291.44 | H51: 3539 | I51: 0.7879146652 | J51: 2788.43 | M51: 0 | P51: 2788.43
B52: October | D52: 3722 | E52: 3.41206878 | F52: 12699.72 | H52: 3722 | I52: 0.7878936056 | J52: 2932.54 | M52: 0 | P52: 2932.54
B53: November | D53: 3301 | E53: 3.411975159 | F53: 11262.93 | H53: 3301 | I53: 0.7878703423 | J53: 2600.76 | M53: 0 | P53: 2600.76
B54: December | D54: 3595 | E54: 3.411885953 | F54: 12265.73 | H54: 3681 | I54: 0.7879353437 | J54: 2900.39 | M54: 0 | P54: 2900.39
B56: Total | D56: =SUM(D43:D54) -> 44108.54 | E56: =IF(D56<>0,F56/D56,0) -> 3.328779416 | F56: =SUM(F43:F54) -> 146827.6 | H56: =SUM(H43:H54) -> 44579.12 | I56: =IF(H56<>0,J56/H56,0) -> 0.724973934 | J56: =SUM(J43:J54) -> 32318.7 | L56: =SUM(L43:L54) -> 0 | M56: =IF(L56<>0,N56/L56,0) -> 0 | N56: =SUM(N43:N54) -> 0 | P56: =SUM(P43:P54) -> 32318.7
B58: Add Extra Host Here (I) | D58: Network | H58: Line Connection | L58: Transformation Connection | P58: Total Line
B59: (if needed)
B60: Month | D60: Units Billed | E60: Rate | F60: Amount | H60: Units Billed | I60: Rate | J60: Amount | L60: Units Billed | M60: Rate | N60: Amount | P60: Amount
B62: January | E62: =IF(D62<>0,F62/D62,0) -> 0 | I62: =IF(H62<>0,J62/H62,0) -> 0 | M62: =IF(L62<>0,N62/L62,0) -> 0 | P62: =J62+N62 -> 0
B63: February | E63: 0 | I63: 0 | M63: 0 | P63: 0
B64: March | E64: 0 | I64: 0 | M64: 0 | P64: 0
B65: April | E65: 0 | I65: 0 | M65: 0 | P65: 0
B66: May | E66: 0 | I66: 0 | M66: 0 | P66: 0
B67: June | E67: 0 | I67: 0 | M67: 0 | P67: 0
B68: July | E68: 0 | I68: 0 | M68: 0 | P68: 0
B69: August | E69: 0 | I69: 0 | M69: 0 | P69: 0
B70: September | E70: 0 | I70: 0 | M70: 0 | P70: 0
B71: October | E71: 0 | I71: 0 | M71: 0 | P71: 0
B72: November | E72: 0 | I72: 0 | M72: 0 | P72: 0
B73: December | E73: 0 | I73: 0 | M73: 0 | P73: 0
B75: Total | D75: =SUM(D62:D73) -> 0 | E75: =IF(D75<>0,F75/D75,0) -> 0 | F75: =SUM(F62:F73) -> 0 | H75: =SUM(H62:H73) -> 0 | I75: =IF(H75<>0,J75/H75,0) -> 0 | J75: =SUM(J62:J73) -> 0 | L75: =SUM(L62:L73) -> 0 | M75: =IF(L75<>0,N75/L75,0) -> 0 | N75: =SUM(N62:N73) -> 0 | P75: =SUM(P62:P73) -> 0
B77: Add Extra Host Here (II) | D77: Network | H77: Line Connection | L77: Transformation Connection | P77: Total Line
B78: (if needed)
B79: Month | D79: Units Billed | E79: Rate | F79: Amount | H79: Units Billed | I79: Rate | J79: Amount | L79: Units Billed | M79: Rate | N79: Amount | P79: Amount
B81: January | E81: =IF(D81<>0,F81/D81,0) -> 0 | I81: =IF(H81<>0,J81/H81,0) -> 0 | M81: =IF(L81<>0,N81/L81,0) -> 0 | P81: =J81+N81 -> 0
B82: February | E82: 0 | I82: 0 | M82: 0 | P82: 0
B83: March | E83: 0 | I83: 0 | M83: 0 | P83: 0
B84: April | E84: 0 | I84: 0 | M84: 0 | P84: 0
B85: May | E85: 0 | I85: 0 | M85: 0 | P85: 0
B86: June | E86: 0 | I86: 0 | M86: 0 | P86: 0
B87: July | E87: 0 | I87: 0 | M87: 0 | P87: 0
B88: August | E88: 0 | I88: 0 | M88: 0 | P88: 0
B89: September | E89: 0 | I89: 0 | M89: 0 | P89: 0
B90: October | E90: 0 | I90: 0 | M90: 0 | P90: 0
B91: November | E91: 0 | I91: 0 | M91: 0 | P91: 0
B92: December | E92: 0 | I92: 0 | M92: 0 | P92: 0
B94: Total | D94: =SUM(D81:D92) -> 0 | E94: =IF(D94<>0,F94/D94,0) -> 0 | F94: =SUM(F81:F92) -> 0 | H94: =SUM(H81:H92) -> 0 | I94: =IF(H94<>0,J94/H94,0) -> 0 | J94: =SUM(J81:J92) -> 0 | L94: =SUM(L81:L92) -> 0 | M94: =IF(L94<>0,N94/L94,0) -> 0 | N94: =SUM(N81:N92) -> 0 | P94: =SUM(P81:P92) -> 0
B96: Total | D96: Network | H96: Line Connection | L96: Transformation Connection | P96: Total Line
B98: Month | D98: Units Billed | E98: Rate | F98: Amount | H98: Units Billed | I98: Rate | J98: Amount | L98: Units Billed | M98: Rate | N98: Amount | P98: Amount
B100: January | D100: =D24+D43+D62+D81 -> 23097.46 | E100: =IF(D100<>0,F100/D100,0) -> 3.676478279 | F100: =F24+F43+F62+F81 -> 84917.31 | H100: =H24+H43+H62+H81 -> 23722.46 | I100: =IF(H100<>0,J100/H100,0) -> 0.8215147164 | J100: =J24+J43+J62+J81 -> 19488.35 | L100: =L24+L43+L62+L81 -> 8237 | M100: =IF(L100<>0,N100/L100,0) -> 2 | N100: =N24+N43+N62+N81 -> 16474 | P100: =J100+N100 -> 35962.35
B101: February | D101: =D25+D44+D63+D82 -> 22887.86 | E101: 3.666508359 | F101: =F25+F44+F63+F82 -> 83918.53 | H101: =H25+H44+H63+H82 -> 23700.86 | I101: 0.8181534341 | J101: =J25+J44+J63+J82 -> 19390.94 | L101: =L25+L44+L63+L82 -> 7755 | M101: 2 | N101: =N25+N44+N63+N82 -> 15510 | P101: 34900.94
B102: March | D102: 21244.13 | E102: 3.670923686 | F102: 77985.58 | H102: 21526.37 | I102: 0.8180283067 | J102: 17609.18 | L102: 6892 | M102: 2 | N102: 13784 | P102: 31393.18
B103: April | D103: 17039.09 | E103: 3.660146757 | F103: 62365.57 | H103: 19455.94 | I103: 0.8192223043 | J103: 15938.74 | L103: 5927 | M103: 2 | N103: 11854 | P103: 27792.74
B104: May | D104: 16389 | E104: 3.672897675 | F104: 60195.12 | H104: 18260.09 | I104: 0.82328948 | J104: 15033.34 | L104: 5521 | M104: 2 | N104: 11042 | P104: 26075.34
B105: June | D105: 16680 | E105: 3.712016187 | F105: 61916.43 | H105: 18333.97 | I105: 0.8478801918 | J105: 15545.01 | L105: 5719 | M105: 2 | N105: 11438 | P105: 26983.01
B106: July | D106: 18836 | E106: 3.720532491 | F106: 70079.95 | H106: 19719.14 | I106: 0.8488625772 | J106: 16738.84 | L106: 6911 | M106: 2 | N106: 13822 | P106: 30560.84
B107: August | D107: 18121 | E107: 3.701585453 | F107: 67076.43 | H107: 19311.29 | I107: 0.8455685767 | J107: 16329.02 | L107: 6059 | M107: 2 | N107: 12118 | P107: 28447.02
B108: September | D108: 17188 | E108: 3.709219223 | F108: 63754.06 | H108: 19795 | I108: 0.8471124021 | J108: 16768.59 | L108: 6504 | M108: 2 | N108: 13008 | P108: 29776.59
B109: October | D109: 17640 | E109: 3.702367347 | F109: 65309.76 | H109: 19321 | I109: 0.8461094146 | J109: 16347.68 | L109: 5908 | M109: 2 | N109: 11816 | P109: 28163.68
B110: November | D110: 19320 | E110: 3.717119565 | F110: 71814.75 | H110: 20288 | I110: 0.8482639984 | J110: 17209.58 | L110: 6673 | M110: 2 | N110: 13346 | P110: 30555.58
B111: December | D111: 19840 | E111: 3.713297883 | F111: 73671.83 | H111: 21687 | I111: 0.8477682483 | J111: 18385.55 | L111: 7315 | M111: 2 | N111: 14630 | P111: 33015.55
B113: Total | D113: =SUM(D100:D111) -> 228282.54 | E113: =IF(D113<>0,F113/D113,0) -> 3.692815578 | F113: =SUM(F100:F111) -> 843005.32 | H113: =SUM(H100:H111) -> 245121.12 | I113: =IF(H113<>0,J113/H113,0) -> 0.8354433922 | J113: =SUM(J100:J111) -> 204784.82 | L113: =SUM(L100:L111) -> 79421 | M113: =IF(L113<>0,N113/L113,0) -> 2 | N113: =SUM(N100:N111) -> 158842 | P113: =SUM(P100:P111) -> 363626.82
N115: Low Voltage Switchgear Credit (if applicable) | P115: ='5. UTRs and Sub-Transmission'!E75 -> 0
N117: Total including deduction for Low Voltage Switchgear Credit | P117: =P113+P115 -> 363626.82

Sheet 7. Current Wholesale
B13: The purpose of this sheet is to calculate the expected billing when current 2016 Uniform Transmission Rates are applied against historical 2015 transmission units.
B20: IESO | D20: Network | H20: Line Connection | L20: Transformation Connection | P20: Total Line
B22: Month | D22: Units Billed | E22: Rate | F22: Amount | H22: Units Billed | I22: Rate | J22: Amount | L22: Units Billed | M22: Rate | N22: Amount | P22: Amount
B24: January | D24: ='6. Historical Wholesale'!D24 -> 18750 | E24: ='5. UTRs and Sub-Transmission'!H22 -> 3.66 | F24: =D24*E24 -> 68625 | H24: ='6. Historical Wholesale'!H24 -> 19375 | I24: ='5. UTRs and Sub-Transmission'!H24 -> 0.87 | J24: =H24*I24 -> 16856.25 | L24: ='6. Historical Wholesale'!L24 -> 8237 | M24: ='5. UTRs and Sub-Transmission'!H26 -> 2.02 | N24: =L24*M24 -> 16638.74 | P24: =J24+N24 -> 33494.99
B25: February | D25: ='6. Historical Wholesale'!D25 -> 18165 | E25: =E24 -> 3.66 | F25: =D25*E25 -> 66483.9 | H25: ='6. Historical Wholesale'!H25 -> 18978 | I25: =I24 -> 0.87 | J25: =H25*I25 -> 16510.86 | L25: ='6. Historical Wholesale'!L25 -> 7755 | M25: =M24 -> 2.02 | N25: =L25*M25 -> 15665.1 | P25: 32175.96
B26: March | D26: ='6. Historical Wholesale'!D26 -> 17031 | E26: =E25 -> 3.66 | F26: 62333.46 | H26: ='6. Historical Wholesale'!H26 -> 17224 | I26: =I25 -> 0.87 | J26: 14984.88 | L26: ='6. Historical Wholesale'!L26 -> 6892 | M26: =M25 -> 2.02 | N26: 13921.84 | P26: 28906.72
B27: April | D27: ='6. Historical Wholesale'!D27 -> 13326 | E27: 3.66 | F27: 48773.16 | H27: ='6. Historical Wholesale'!H27 -> 15678 | I27: 0.87 | J27: 13639.86 | L27: ='6. Historical Wholesale'!L27 -> 5927 | M27: 2.02 | N27: 11972.54 | P27: 25612.4
B28: May | D28: ='6. Historical Wholesale'!D28 -> 13197 | E28: 3.66 | F28: 48301.02 | H28: ='6. Historical Wholesale'!H28 -> 15068 | I28: 0.87 | J28: 13109.16 | L28: ='6. Historical Wholesale'!L28 -> 5521 | M28: 2.02 | N28: 11152.42 | P28: 24261.58
B29: June | D29: ='6. Historical Wholesale'!D29 -> 13598 | E29: 3.66 | F29: 49768.68 | H29: ='6. Historical Wholesale'!H29 -> 15252 | I29: 0.87 | J29: 13269.24 | L29: ='6. Historical Wholesale'!L29 -> 5719 | M29: 2.02 | N29: 11552.38 | P29: 24821.62
B30: July | D30: ='6. Historical Wholesale'!D30 -> 15790 | E30: 3.66 | F30: 57791.4 | H30: ='6. Historical Wholesale'!H30 -> 16673 | I30: 0.87 | J30: 14505.51 | L30: ='6. Historical Wholesale'!L30 -> 6911 | M30: 2.02 | N30: 13960.22 | P30: 28465.73
B31: August | D31: ='6. Historical Wholesale'!D31 -> 14256 | E31: 3.66 | F31: 52176.96 | H31: ='6. Historical Wholesale'!H31 -> 15446 | I31: 0.87 | J31: 13438.02 | L31: ='6. Historical Wholesale'!L31 -> 6059 | M31: 2.02 | N31: 12239.18 | P31: 25677.2
B32: September | D32: ='6. Historical Wholesale'!D32 -> 13879 | E32: 3.66 | F32: 50797.14 | H32: ='6. Historical Wholesale'!H32 -> 16256 | I32: 0.87 | J32: 14142.72 | L32: ='6. Historical Wholesale'!L32 -> 6504 | M32: 2.02 | N32: 13138.08 | P32: 27280.8
B33: October | D33: ='6. Historical Wholesale'!D33 -> 13918 | E33: 3.66 | F33: 50939.88 | H33: ='6. Historical Wholesale'!H33 -> 15599 | I33: 0.87 | J33: 13571.13 | L33: ='6. Historical Wholesale'!L33 -> 5908 | M33: 2.02 | N33: 11934.16 | P33: 25505.29
B34: November | D34: ='6. Historical Wholesale'!D34 -> 16019 | E34: 3.66 | F34: 58629.54 | H34: ='6. Historical Wholesale'!H34 -> 16987 | I34: 0.87 | J34: 14778.69 | L34: ='6. Historical Wholesale'!L34 -> 6673 | M34: 2.02 | N34: 13479.46 | P34: 28258.15
B35: December | D35: ='6. Historical Wholesale'!D35 -> 16245 | E35: 3.66 | F35: 59456.7 | H35: ='6. Historical Wholesale'!H35 -> 18006 | I35: 0.87 | J35: 15665.22 | L35: ='6. Historical Wholesale'!L35 -> 7315 | M35: 2.02 | N35: 14776.3 | P35: 30441.52
B37: Total | D37: =SUM(D24:D35) -> 184174 | E37: =IF(D37<>0,F37/D37,0) -> 3.66 | F37: =SUM(F24:F35) -> 674076.84 | H37: =SUM(H24:H35) -> 200542 | I37: =IF(H37<>0,J37/H37,0) -> 0.87 | J37: =SUM(J24:J35) -> 174471.54 | L37: =SUM(L24:L35) -> 79421 | M37: =IF(L37<>0,N37/L37,0) -> 2.02 | N37: =SUM(N24:N35) -> 160430.42 | P37: =SUM(P24:P35) -> 334901.96
B39: Hydro One | D39: Network | H39: Line Connection | L39: Transformation Connection | P39: Total Line
B41: Month | D41: Units Billed | E41: Rate | F41: Amount | H41: Units Billed | I41: Rate | J41: Amount | L41: Units Billed | M41: Rate | N41: Amount | P41: Amount
B43: January | D43: ='6. Historical Wholesale'!D43 -> 4347.46 | E43: ='5. UTRs and Sub-Transmission'!$F$36 -> 3.4121 | F43: =D43*E43 -> 14833.96827 | H43: ='6. Historical Wholesale'!H43 -> 4347.46 | I43: ='5. UTRs and Sub-Transmission'!F38 -> 0.7879 | J43: =H43*I43 -> 3425.363734 | L43: ='6. Historical Wholesale'!L43 -> 0 | M43: ='5. UTRs and Sub-Transmission'!F40 -> 1.8018 | N43: =L43*M43 -> 0 | P43: =J43+N43 -> 3425.363734
B44: February | D44: ='6. Historical Wholesale'!D44 -> 4722.86 | E44: ='5. UTRs and Sub-Transmission'!H36 -> 3.3396 | F44: =D44*E44 -> 15772.46326 | H44: ='6. Historical Wholesale'!H44 -> 4722.86 | I44: ='5. UTRs and Sub-Transmission'!H38 -> 0.7791 | J44: =H44*I44 -> 3679.580226 | L44: ='6. Historical Wholesale'!L44 -> 0 | M44: ='5. UTRs and Sub-Transmission'!H40 -> 1.7713 | N44: =L44*M44 -> 0 | P44: 3679.580226
B45: March | D45: ='6. Historical Wholesale'!D45 -> 4213.13 | E45: =E44 -> 3.3396 | F45: 14070.16895 | H45: ='6. Historical Wholesale'!H45 -> 4302.37 | I45: =I44 -> 0.7791 | J45: 3351.976467 | L45: ='6. Historical Wholesale'!L45 -> 0 | M45: =M44 -> 1.7713 | N45: 0 | P45: 3351.976467
B46: April | D46: ='6. Historical Wholesale'!D46 -> 3713.09 | E46: 3.3396 | F46: 12400.23536 | H46: ='6. Historical Wholesale'!H46 -> 3777.94 | I46: 0.7791 | J46: 2943.393054 | L46: ='6. Historical Wholesale'!L46 -> 0 | M46: =M45 -> 1.7713 | N46: 0 | P46: 2943.393054
B47: May | D47: ='6. Historical Wholesale'!D47 -> 3192 | E47: 3.3396 | F47: 10660.0032 | H47: ='6. Historical Wholesale'!H47 -> 3192.09 | I47: 0.7791 | J47: 2486.957319 | L47: ='6. Historical Wholesale'!L47 -> 0 | M47: 1.7713 | N47: 0 | P47: 2486.957319
B48: June | D48: ='6. Historical Wholesale'!D48 -> 3082 | E48: 3.3396 | F48: 10292.6472 | H48: ='6. Historical Wholesale'!H48 -> 3081.97 | I48: 0.7791 | J48: 2401.162827 | L48: ='6. Historical Wholesale'!L48 -> 0 | M48: 1.7713 | N48: 0 | P48: 2401.162827
B49: July | D49: ='6. Historical Wholesale'!D49 -> 3046 | E49: 3.3396 | F49: 10172.4216 | H49: ='6. Historical Wholesale'!H49 -> 3046.14 | I49: 0.7791 | J49: 2373.247674 | L49: ='6. Historical Wholesale'!L49 -> 0 | M49: 1.7713 | N49: 0 | P49: 2373.247674
B50: August | D50: ='6. Historical Wholesale'!D50 -> 3865 | E50: 3.3396 | F50: 12907.554 | H50: ='6. Historical Wholesale'!H50 -> 3865.29 | I50: 0.7791 | J50: 3011.447439 | L50: ='6. Historical Wholesale'!L50 -> 0 | M50: 1.7713 | N50: 0 | P50: 3011.447439
B51: September | D51: ='6. Historical Wholesale'!D51 -> 3309 | E51: 3.3396 | F51: 11050.7364 | H51: ='6. Historical Wholesale'!H51 -> 3539 | I51: 0.7791 | J51: 2757.2349 | L51: ='6. Historical Wholesale'!L51 -> 0 | M51: 1.7713 | N51: 0 | P51: 2757.2349
B52: October | D52: ='6. Historical Wholesale'!D52 -> 3722 | E52: 3.3396 | F52: 12429.9912 | H52: ='6. Historical Wholesale'!H52 -> 3722 | I52: 0.7791 | J52: 2899.8102 | L52: ='6. Historical Wholesale'!L52 -> 0 | M52: 1.7713 | N52: 0 | P52: 2899.8102
B53: November | D53: ='6. Historical Wholesale'!D53 -> 3301 | E53: 3.3396 | F53: 11024.0196 | H53: ='6. Historical Wholesale'!H53 -> 3301 | I53: 0.7791 | J53: 2571.8091 | L53: ='6. Historical Wholesale'!L53 -> 0 | M53: 1.7713 | N53: 0 | P53: 2571.8091
B54: December | D54: ='6. Historical Wholesale'!D54 -> 3595 | E54: 3.3396 | F54: 12005.862 | H54: ='6. Historical Wholesale'!H54 -> 3681 | I54: 0.7791 | J54: 2867.8671 | L54: ='6. Historical Wholesale'!L54 -> 0 | M54: 1.7713 | N54: 0 | P54: 2867.8671
B56: Total | D56: =SUM(D43:D54) -> 44108.54 | E56: =IF(D56<>0,F56/D56,0) -> 3.346745801 | F56: =SUM(F43:F54) -> 147620.071 | H56: =SUM(H43:H54) -> 44579.12 | I56: =IF(H56<>0,J56/H56,0) -> 0.7799581966 | J56: =SUM(J43:J54) -> 34769.85004 | L56: =SUM(L43:L54) -> 0 | M56: =IF(L56<>0,N56/L56,0) -> 0 | N56: =SUM(N43:N54) -> 0 | P56: =SUM(P43:P54) -> 34769.85004
B58: ='6. Historical Wholesale'!B58 -> Add Extra Host Here (I) | D58: Network | H58: Line Connection | L58: Transformation Connection | P58: Total Line
B60: Month | D60: Units Billed | E60: Rate | F60: Amount | H60: Units Billed | I60: Rate | J60: Amount | L60: Units Billed | M60: Rate | N60: Amount | P60: Amount
B62: January | D62: ='6. Historical Wholesale'!D62 -> 0 | E62: ='5. UTRs and Sub-Transmission'!H51 -> 0 | F62: =D62*E62 -> 0 | H62: ='6. Historical Wholesale'!H62 -> 0 | I62: ='5. UTRs and Sub-Transmission'!H53 -> 0 | J62: =H62*I62 -> 0 | L62: ='6. Historical Wholesale'!L62 -> 0 | M62: ='5. UTRs and Sub-Transmission'!H55 -> 0 | N62: =L62*M62 -> 0 | P62: =J62+N62 -> 0
B63: February | D63: ='6. Historical Wholesale'!D63 -> 0 | E63: =E62 -> 0 | F63: =D63*E63 -> 0 | H63: ='6. Historical Wholesale'!H63 -> 0 | I63: =I62 -> 0 | J63: =H63*I63 -> 0 | L63: ='6. Historical Wholesale'!L63 -> 0 | M63: =M62 -> 0 | N63: =L63*M63 -> 0 | P63: 0
B64: March | D64: ='6. Historical Wholesale'!D64 -> 0 | E64: =E63 -> 0 | F64: 0 | H64: ='6. Historical Wholesale'!H64 -> 0 | I64: =I63 -> 0 | J64: 0 | L64: ='6. Historical Wholesale'!L64 -> 0 | M64: =M63 -> 0 | N64: 0 | P64: 0
B65: April | D65: ='6. Historical Wholesale'!D65 -> 0 | E65: 0 | F65: 0 | H65: ='6. Historical Wholesale'!H65 -> 0 | I65: 0 | J65: 0 | L65: ='6. Historical Wholesale'!L65 -> 0 | M65: =M64 -> 0 | N65: 0 | P65: 0
B66: May | D66: ='6. Historical Wholesale'!D66 -> 0 | E66: 0 | F66: 0 | H66: ='6. Historical Wholesale'!H66 -> 0 | I66: 0 | J66: 0 | L66: ='6. Historical Wholesale'!L66 -> 0 | M66: 0 | N66: 0 | P66: 0
B67: June | D67: ='6. Historical Wholesale'!D67 -> 0 | E67: 0 | F67: 0 | H67: ='6. Historical Wholesale'!H67 -> 0 | I67: 0 | J67: 0 | L67: ='6. Historical Wholesale'!L67 -> 0 | M67: 0 | N67: 0 | P67: 0
B68: July | D68: ='6. Historical Wholesale'!D68 -> 0 | E68: 0 | F68: 0 | H68: ='6. Historical Wholesale'!H68 -> 0 | I68: 0 | J68: 0 | L68: ='6. Historical Wholesale'!L68 -> 0 | M68: 0 | N68: 0 | P68: 0
B69: August | D69: ='6. Historical Wholesale'!D69 -> 0 | E69: 0 | F69: 0 | H69: ='6. Historical Wholesale'!H69 -> 0 | I69: 0 | J69: 0 | L69: ='6. Historical Wholesale'!L69 -> 0 | M69: 0 | N69: 0 | P69: 0
B70: September | D70: ='6. Historical Wholesale'!D70 -> 0 | E70: 0 | F70: 0 | H70: ='6. Historical Wholesale'!H70 -> 0 | I70: 0 | J70: 0 | L70: ='6. Historical Wholesale'!L70 -> 0 | M70: 0 | N70: 0 | P70: 0
B71: October | D71: ='6. Historical Wholesale'!D71 -> 0 | E71: 0 | F71: 0 | H71: ='6. Historical Wholesale'!H71 -> 0 | I71: 0 | J71: 0 | L71: ='6. Historical Wholesale'!L71 -> 0 | M71: 0 | N71: 0 | P71: 0
B72: November | D72: ='6. Historical Wholesale'!D72 -> 0 | E72: 0 | F72: 0 | H72: ='6. Historical Wholesale'!H72 -> 0 | I72: 0 | J72: 0 | L72: ='6. Historical Wholesale'!L72 -> 0 | M72: 0 | N72: 0 | P72: 0
B73: December | D73: ='6. Historical Wholesale'!D73 -> 0 | E73: 0 | F73: 0 | H73: ='6. Historical Wholesale'!H73 -> 0 | I73: 0 | J73: 0 | L73: ='6. Historical Wholesale'!L73 -> 0 | M73: 0 | N73: 0 | P73: 0
B75: Total | D75: =SUM(D62:D73) -> 0 | E75: =IF(D75<>0,F75/D75,0) -> 0 | F75: =SUM(F62:F73) -> 0 | H75: =SUM(H62:H73) -> 0 | I75: =IF(H75<>0,J75/H75,0) -> 0 | J75: =SUM(J62:J73) -> 0 | L75: =SUM(L62:L73) -> 0 | M75: =IF(L75<>0,N75/L75,0) -> 0 | N75: =SUM(N62:N73) -> 0 | P75: =SUM(P62:P73) -> 0
B77: ='6. Historical Wholesale'!B77 -> Add Extra Host Here (II) | D77: Network | H77: Line Connection | L77: Transformation Connection | P77: Total Line
B79: Month | D79: Units Billed | E79: Rate | F79: Amount | H79: Units Billed | I79: Rate | J79: Amount | L79: Units Billed | M79: Rate | N79: Amount | P79: Amount
B81: January | D81: ='6. Historical Wholesale'!D81 -> 0 | E81: ='5. UTRs and Sub-Transmission'!H66 -> 0 | F81: =D81*E81 -> 0 | H81: ='6. Historical Wholesale'!H81 -> 0 | I81: ='5. UTRs and Sub-Transmission'!H68 -> 0 | J81: =H81*I81 -> 0 | L81: ='6. Historical Wholesale'!L81 -> 0 | M81: ='5. UTRs and Sub-Transmission'!H70 -> 0 | N81: =L81*M81 -> 0 | P81: =J81+N81 -> 0
B82: February | D82: ='6. Historical Wholesale'!D82 -> 0 | E82: =E81 -> 0 | F82: =D82*E82 -> 0 | H82: ='6. Historical Wholesale'!H82 -> 0 | I82: =I81 -> 0 | J82: =H82*I82 -> 0 | L82: ='6. Historical Wholesale'!L82 -> 0 | M82: =M81 -> 0 | N82: =L82*M82 -> 0 | P82: 0
B83: March | D83: ='6. Historical Wholesale'!D83 -> 0 | E83: =E82 -> 0 | F83: 0 | H83: ='6. Historical Wholesale'!H83 -> 0 | I83: =I82 -> 0 | J83: 0 | L83: ='6. Historical Wholesale'!L83 -> 0 | M83: =M82 -> 0 | N83: 0 | P83: 0
B84: April | D84: ='6. Historical Wholesale'!D84 -> 0 | E84: 0 | F84: 0 | H84: ='6. Historical Wholesale'!H84 -> 0 | I84: 0 | J84: 0 | L84: ='6. Historical Wholesale'!L84 -> 0 | M84: =M83 -> 0 | N84: 0 | P84: 0
B85: May | D85: ='6. Historical Wholesale'!D85 -> 0 | E85: 0 | F85: 0 | H85: ='6. Historical Wholesale'!H85 -> 0 | I85: 0 | J85: 0 | L85: ='6. Historical Wholesale'!L85 -> 0 | M85: 0 | N85: 0 | P85: 0
B86: June | D86: ='6. Historical Wholesale'!D86 -> 0 | E86: 0 | F86: 0 | H86: ='6. Historical Wholesale'!H86 -> 0 | I86: 0 | J86: 0 | L86: ='6. Historical Wholesale'!L86 -> 0 | M86: 0 | N86: 0 | P86: 0
B87: July | D87: ='6. Historical Wholesale'!D87 -> 0 | E87: 0 | F87: 0 | H87: ='6. Historical Wholesale'!H87 -> 0 | I87: 0 | J87: 0 | L87: ='6. Historical Wholesale'!L87 -> 0 | M87: 0 | N87: 0 | P87: 0
B88: August | D88: ='6. Historical Wholesale'!D88 -> 0 | E88: 0 | F88: 0 | H88: ='6. Historical Wholesale'!H88 -> 0 | I88: 0 | J88: 0 | L88: ='6. Historical Wholesale'!L88 -> 0 | M88: 0 | N88: 0 | P88: 0
B89: September | D89: ='6. Historical Wholesale'!D89 -> 0 | E89: 0 | F89: 0 | H89: ='6. Historical Wholesale'!H89 -> 0 | I89: 0 | J89: 0 | L89: ='6. Historical Wholesale'!L89 -> 0 | M89: 0 | N89: 0 | P89: 0
B90: October | D90: ='6. Historical Wholesale'!D90 -> 0 | E90: 0 | F90: 0 | H90: ='6. Historical Wholesale'!H90 -> 0 | I90: 0 | J90: 0 | L90: ='6. Historical Wholesale'!L90 -> 0 | M90: 0 | N90: 0 | P90: 0
B91: November | D91: ='6. Historical Wholesale'!D91 -> 0 | E91: 0 | F91: 0 | H91: ='6. Historical Wholesale'!H91 -> 0 | I91: 0 | J91: 0 | L91: ='6. Historical Wholesale'!L91 -> 0 | M91: 0 | N91: 0 | P91: 0
B92: December | D92: ='6. Historical Wholesale'!D92 -> 0 | E92: 0 | F92: 0 | H92: ='6. Historical Wholesale'!H92 -> 0 | I92: 0 | J92: 0 | L92: ='6. Historical Wholesale'!L92 -> 0 | M92: 0 | N92: 0 | P92: 0
B94: Total | D94: =SUM(D81:D92) -> 0 | E94: =IF(D94<>0,F94/D94,0) -> 0 | F94: =SUM(F81:F92) -> 0 | H94: =SUM(H81:H92) -> 0 | I94: =IF(H94<>0,J94/H94,0) -> 0 | J94: =SUM(J81:J92) -> 0 | L94: =SUM(L81:L92) -> 0 | M94: =IF(L94<>0,N94/L94,0) -> 0 | N94: =SUM(N81:N92) -> 0 | P94: =SUM(P81:P92) -> 0
B96: Total | D96: Network | H96: Line Connection | L96: Transformation Connection | P96: Total Line
B98: Month | D98: Units Billed | E98: Rate | F98: Amount | H98: Units Billed | I98: Rate | J98: Amount | L98: Units Billed | M98: Rate | N98: Amount | P98: Amount
B100: January | D100: =D24+D43+D62+D81 -> 23097.46 | E100: =IF(D100<>0,F100/D100,0) -> 3.61333966 | F100: =F24+F43+F62+F81 -> 83458.96827 | H100: =H24+H43+H62+H81 -> 23722.46 | I100: =IF(H100<>0,J100/H100,0) -> 0.8549540703 | J100: =J24+J43+J62+J81 -> 20281.61373 | L100: =L24+L43+L62+L81 -> 8237 | M100: =IF(L100<>0,N100/L100,0) -> 2.02 | N100: =N24+N43+N62+N81 -> 16638.74 | P100: =J100+N100 -> 36920.35373
B101: February | D101: =D25+D44+D63+D82 -> 22887.86 | E101: 3.593886159 | F101: =F25+F44+F63+F82 -> 82256.36326 | H101: =H25+H44+H63+H82 -> 23700.86 | I101: 0.8518863968 | J101: =J25+J44+J63+J82 -> 20190.44023 | L101: =L25+L44+L63+L82 -> 7755 | M101: 2.02 | N101: =N25+N44+N63+N82 -> 15665.1 | P101: 35855.54023
B102: March | D102: 21244.13 | E102: 3.59645836 | F102: 76403.62895 | H102: 21526.37 | I102: 0.8518322628 | J102: 18336.85647 | L102: 6892 | M102: 2.02 | N102: 13921.84 | P102: 32258.69647
B103: April | D103: 17039.09 | E103: 3.59017972 | F103: 61173.39536 | H103: 19455.94 | I103: 0.8523491054 | J103: 16583.25305 | L103: 5927 | M103: 2.02 | N103: 11972.54 | P103: 28555.79305
B104: May | D104: 16389 | E104: 3.597597364 | F104: 58961.0232 | H104: 18260.09 | I104: 0.8541095536 | J104: 15596.11732 | L104: 5521 | M104: 2.02 | N104: 11152.42 | P104: 26748.53732
B105: June | D105: 16680 | E105: 3.600798993 | F105: 60061.3272 | H105: 18333.97 | I105: 0.854719563 | J105: 15670.40283 | L105: 5719 | M105: 2.02 | N105: 11552.38 | P105: 27222.78283
B106: July | D106: 18836 | E106: 3.608187598 | F106: 67963.8216 | H106: 19719.14 | I106: 0.8559581033 | J106: 16878.75767 | L106: 6911 | M106: 2.02 | N106: 13960.22 | P106: 30838.97767
B107: August | D107: 18121 | E107: 3.591662381 | F107: 65084.514 | H107: 19311.29 | I107: 0.8518057281 | J107: 16449.46744 | L107: 6059 | M107: 2.02 | N107: 12239.18 | P107: 28688.64744
B108: September | D108: 17188 | E108: 3.598317221 | F108: 61847.8764 | H108: 19795 | I108: 0.8537486689 | J108: 16899.9549 | L108: 6504 | M108: 2.02 | N108: 13138.08 | P108: 30038.0349
B109: October | D109: 17640 | E109: 3.592396327 | F109: 63369.8712 | H109: 19321 | I109: 0.852489012 | J109: 16470.9402 | L109: 5908 | M109: 2.02 | N109: 11934.16 | P109: 28405.1002
B110: November | D110: 19320 | E110: 3.605256708 | F110: 69653.5596 | H110: 20288 | I110: 0.855209932 | J110: 17350.4991 | L110: 6673 | M110: 2.02 | N110: 13479.46 | P110: 30829.9591
B111: December | D111: 19840 | E111: 3.601943649 | F111: 71462.562 | H111: 21687 | I111: 0.8545712685 | J111: 18533.0871 | L111: 7315 | M111: 2.02 | N111: 14776.3 | P111: 33309.3871
B113: Total | D113: =SUM(D100:D111) -> 228282.54 | E113: =IF(D113<>0,F113/D113,0) -> 3.599473315 | F113: =SUM(F100:F111) -> 821696.911 | H113: =SUM(H100:H111) -> 245121.12 | I113: =IF(H113<>0,J113/H113,0) -> 0.8536244859 | J113: =SUM(J100:J111) -> 209241.39 | L113: =SUM(L100:L111) -> 79421 | M113: =IF(L113<>0,N113/L113,0) -> 2.02 | N113: =SUM(N100:N111) -> 160430.42 | P113: =SUM(P100:P111) -> 369671.81
N115: Low Voltage Switchgear Credit (if applicable) | P115: ='5. UTRs and Sub-Transmission'!H75 -> 0
N117: Total including deduction for Low Voltage Switchgear Credit | P117: =P113+P115 -> 369671.81

Sheet 8. Forecast Wholesale
B13: The purpose of this sheet is to calculate the expected billing when forecasted 2017 Uniform Transmission Rates are applied against historical 2015 transmission units.
B20: IESO | D20: Network | H20: Line Connection | L20: Transformation Connection | P20: Total Line
B22: Month | D22: Units Billed | E22: Rate | F22: Amount | H22: Units Billed | I22: Rate | J22: Amount | L22: Units Billed | M22: Rate | N22: Amount | P22: Amount
B24: January | D24: ='6. Historical Wholesale'!D24 -> 18750 | E24: ='5. UTRs and Sub-Transmission'!J22 -> 3.66 | F24: =D24*E24 -> 68625 | H24: ='6. Historical Wholesale'!H24 -> 19375 | I24: ='5. UTRs and Sub-Transmission'!J24 -> 0.87 | J24: =H24*I24 -> 16856.25 | L24: ='6. Historical Wholesale'!L24 -> 8237 | M24: ='5. UTRs and Sub-Transmission'!J26 -> 2.02 | N24: =L24*M24 -> 16638.74 | P24: =J24+N24 -> 33494.99
B25: February | D25: ='6. Historical Wholesale'!D25 -> 18165 | E25: =E24 -> 3.66 | F25: 66483.9 | H25: ='6. Historical Wholesale'!H25 -> 18978 | I25: =I24 -> 0.87 | J25: 16510.86 | L25: ='6. Historical Wholesale'!L25 -> 7755 | M25: =M24 -> 2.02 | N25: 15665.1 | P25: 32175.96
B26: March | D26: ='6. Historical Wholesale'!D26 -> 17031 | E26: 3.66 | F26: 62333.46 | H26: ='6. Historical Wholesale'!H26 -> 17224 | I26: 0.87 | J26: 14984.88 | L26: ='6. Historical Wholesale'!L26 -> 6892 | M26: 2.02 | N26: 13921.84 | P26: 28906.72
B27: April | D27: ='6. Historical Wholesale'!D27 -> 13326 | E27: 3.66 | F27: 48773.16 | H27: ='6. Historical Wholesale'!H27 -> 15678 | I27: 0.87 | J27: 13639.86 | L27: ='6. Historical Wholesale'!L27 -> 5927 | M27: 2.02 | N27: 11972.54 | P27: 25612.4
B28: May | D28: ='6. Historical Wholesale'!D28 -> 13197 | E28: 3.66 | F28: 48301.02 | H28: ='6. Historical Wholesale'!H28 -> 15068 | I28: 0.87 | J28: 13109.16 | L28: ='6. Historical Wholesale'!L28 -> 5521 | M28: 2.02 | N28: 11152.42 | P28: 24261.58
B29: June | D29: ='6. Historical Wholesale'!D29 -> 13598 | E29: 3.66 | F29: 49768.68 | H29: ='6. Historical Wholesale'!H29 -> 15252 | I29: 0.87 | J29: 13269.24 | L29: ='6. Historical Wholesale'!L29 -> 5719 | M29: 2.02 | N29: 11552.38 | P29: 24821.62
B30: July | D30: ='6. Historical Wholesale'!D30 -> 15790 | E30: 3.66 | F30: 57791.4 | H30: ='6. Historical Wholesale'!H30 -> 16673 | I30: 0.87 | J30: 14505.51 | L30: ='6. Historical Wholesale'!L30 -> 6911 | M30: 2.02 | N30: 13960.22 | P30: 28465.73
B31: August | D31: ='6. Historical Wholesale'!D31 -> 14256 | E31: 3.66 | F31: 52176.96 | H31: ='6. Historical Wholesale'!H31 -> 15446 | I31: 0.87 | J31: 13438.02 | L31: ='6. Historical Wholesale'!L31 -> 6059 | M31: 2.02 | N31: 12239.18 | P31: 25677.2
B32: September | D32: ='6. Historical Wholesale'!D32 -> 13879 | E32: 3.66 | F32: 50797.14 | H32: ='6. Historical Wholesale'!H32 -> 16256 | I32: 0.87 | J32: 14142.72 | L32: ='6. Historical Wholesale'!L32 -> 6504 | M32: 2.02 | N32: 13138.08 | P32: 27280.8
B33: October | D33: ='6. Historical Wholesale'!D33 -> 13918 | E33: 3.66 | F33: 50939.88 | H33: ='6. Historical Wholesale'!H33 -> 15599 | I33: 0.87 | J33: 13571.13 | L33: ='6. Historical Wholesale'!L33 -> 5908 | M33: 2.02 | N33: 11934.16 | P33: 25505.29
B34: November | D34: ='6. Historical Wholesale'!D34 -> 16019 | E34: 3.66 | F34: 58629.54 | H34: ='6. Historical Wholesale'!H34 -> 16987 | I34: 0.87 | J34: 14778.69 | L34: ='6. Historical Wholesale'!L34 -> 6673 | M34: 2.02 | N34: 13479.46 | P34: 28258.15
B35: December | D35: ='6. Historical Wholesale'!D35 -> 16245 | E35: 3.66 | F35: 59456.7 | H35: ='6. Historical Wholesale'!H35 -> 18006 | I35: 0.87 | J35: 15665.22 | L35: ='6. Historical Wholesale'!L35 -> 7315 | M35: 2.02 | N35: 14776.3 | P35: 30441.52
B37: Total | D37: =SUM(D24:D35) -> 184174 | E37: =IF(D37<>0,F37/D37,0) -> 3.66 | F37: =SUM(F24:F35) -> 674076.84 | H37: =SUM(H24:H35) -> 200542 | I37: =IF(H37<>0,J37/H37,0) -> 0.87 | J37: =SUM(J24:J35) -> 174471.54 | L37: =SUM(L24:L35) -> 79421 | M37: =IF(L37<>0,N37/L37,0) -> 2.02 | N37: =SUM(N24:N35) -> 160430.42 | P37: =SUM(P24:P35) -> 334901.96
B39: Hydro One | D39: Network | H39: Line Connection | L39: Transformation Connection | P39: Total Line
B41: Month | D41: Units Billed | E41: Rate | F41: Amount | H41: Units Billed | I41: Rate | J41: Amount | L41: Units Billed | M41: Rate | N41: Amount | P41: Amount
B43: January | D43: ='6. Historical Wholesale'!D43 -> 4347.46 | E43: ='5. UTRs and Sub-Transmission'!J36 -> 3.3396 | F43: =D43*E43 -> 14518.77742 | H43: ='6. Historical Wholesale'!H43 -> 4347.46 | I43: ='5. UTRs and Sub-Transmission'!J38 -> 0.7791 | J43: =H43*I43 -> 3387.106086 | L43: ='6. Historical Wholesale'!L43 -> 0 | M43: ='5. UTRs and Sub-Transmission'!J40 -> 1.7713 | N43: =L43*M43 -> 0 | P43: =J43+N43 -> 3387.106086
B44: February | D44: ='6. Historical Wholesale'!D44 -> 4722.86 | E44: =E43 -> 3.3396 | F44: 15772.46326 | H44: ='6. Historical Wholesale'!H44 -> 4722.86 | I44: =I43 -> 0.7791 | J44: 3679.580226 | L44: ='6. Historical Wholesale'!L44 -> 0 | M44: =M43 -> 1.7713 | N44: 0 | P44: 3679.580226
B45: March | D45: ='6. Historical Wholesale'!D45 -> 4213.13 | E45: 3.3396 | F45: 14070.16895 | H45: ='6. Historical Wholesale'!H45 -> 4302.37 | I45: 0.7791 | J45: 3351.976467 | L45: ='6. Historical Wholesale'!L45 -> 0 | M45: 1.7713 | N45: 0 | P45: 3351.976467
B46: April | D46: ='6. Historical Wholesale'!D46 -> 3713.09 | E46: 3.3396 | F46: 12400.23536 | H46: ='6. Historical Wholesale'!H46 -> 3777.94 | I46: 0.7791 | J46: 2943.393054 | L46: ='6. Historical Wholesale'!L46 -> 0 | M46: 1.7713 | N46: 0 | P46: 2943.393054
B47: May | D47: ='6. Historical Wholesale'!D47 -> 3192 | E47: 3.3396 | F47: 10660.0032 | H47: ='6. Historical Wholesale'!H47 -> 3192.09 | I47: 0.7791 | J47: 2486.957319 | L47: ='6. Historical Wholesale'!L47 -> 0 | M47: 1.7713 | N47: 0 | P47: 2486.957319
B48: June | D48: ='6. Historical Wholesale'!D48 -> 3082 | E48: 3.3396 | F48: 10292.6472 | H48: ='6. Historical Wholesale'!H48 -> 3081.97 | I48: 0.7791 | J48: 2401.162827 | L48: ='6. Historical Wholesale'!L48 -> 0 | M48: 1.7713 | N48: 0 | P48: 2401.162827
B49: July | D49: ='6. Historical Wholesale'!D49 -> 3046 | E49: 3.3396 | F49: 10172.4216 | H49: ='6. Historical Wholesale'!H49 -> 3046.14 | I49: 0.7791 | J49: 2373.247674 | L49: ='6. Historical Wholesale'!L49 -> 0 | M49: 1.7713 | N49: 0 | P49: 2373.247674
B50: August | D50: ='6. Historical Wholesale'!D50 -> 3865 | E50: 3.3396 | F50: 12907.554 | H50: ='6. Historical Wholesale'!H50 -> 3865.29 | I50: 0.7791 | J50: 3011.447439 | L50: ='6. Historical Wholesale'!L50 -> 0 | M50: 1.7713 | N50: 0 | P50: 3011.447439
B51: September | D51: ='6. Historical Wholesale'!D51 -> 3309 | E51: 3.3396 | F51: 11050.7364 | H51: ='6. Historical Wholesale'!H51 -> 3539 | I51: 0.7791 | J51: 2757.2349 | L51: ='6. Historical Wholesale'!L51 -> 0 | M51: 1.7713 | N51: 0 | P51: 2757.2349
B52: October | D52: ='6. Historical Wholesale'!D52 -> 3722 | E52: 3.3396 | F52: 12429.9912 | H52: ='6. Historical Wholesale'!H52 -> 3722 | I52: 0.7791 | J52: 2899.8102 | L52: ='6. Historical Wholesale'!L52 -> 0 | M52: 1.7713 | N52: 0 | P52: 2899.8102
B53: November | D53: ='6. Historical Wholesale'!D53 -> 3301 | E53: 3.3396 | F53: 11024.0196 | H53: ='6. Historical Wholesale'!H53 -> 3301 | I53: 0.7791 | J53: 2571.8091 | L53: ='6. Historical Wholesale'!L53 -> 0 | M53: 1.7713 | N53: 0 | P53: 2571.8091
B54: December | D54: ='6. Historical Wholesale'!D54 -> 3595 | E54: 3.3396 | F54: 12005.862 | H54: ='6. Historical Wholesale'!H54 -> 3681 | I54: 0.7791 | J54: 2867.8671 | L54: ='6. Historical Wholesale'!L54 -> 0 | M54: 1.7713 | N54: 0 | P54: 2867.8671
B56: Total | D56: =SUM(D43:D54) -> 44108.54 | E56: =IF(D56<>0,F56/D56,0) -> 3.3396 | F56: =SUM(F43:F54) -> 147304.8802 | H56: =SUM(H43:H54) -> 44579.12 | I56: =IF(H56<>0,J56/H56,0) -> 0.7791 | J56: =SUM(J43:J54) -> 34731.59239 | L56: =SUM(L43:L54) -> 0 | M56: =IF(L56<>0,N56/L56,0) -> 0 | N56: =SUM(N43:N54) -> 0 | P56: =SUM(P43:P54) -> 34731.59239
B58: ='6. Historical Wholesale'!B58 -> Add Extra Host Here (I) | D58: Network | H58: Line Connection | L58: Transformation Connection | P58: Total Line
B60: Month | D60: Units Billed | E60: Rate | F60: Amount | H60: Units Billed | I60: Rate | J60: Amount | L60: Units Billed | M60: Rate | N60: Amount | P60: Amount
B62: January | D62: ='6. Historical Wholesale'!D62 -> 0 | E62: ='5. UTRs and Sub-Transmission'!J51 -> 0 | F62: =D62*E62 -> 0 | H62: ='6. Historical Wholesale'!H62 -> 0 | I62: ='5. UTRs and Sub-Transmission'!J53 -> 0 | J62: =H62*I62 -> 0 | L62: ='6. Historical Wholesale'!L62 -> 0 | M62: ='5. UTRs and Sub-Transmission'!J55 -> 0 | N62: =L62*M62 -> 0 | P62: =J62+N62 -> 0
B63: February | D63: ='6. Historical Wholesale'!D63 -> 0 | E63: =E62 -> 0 | F63: 0 | H63: ='6. Historical Wholesale'!H63 -> 0 | I63: =I62 -> 0 | J63: 0 | L63: ='6. Historical Wholesale'!L63 -> 0 | M63: =M62 -> 0 | N63: 0 | P63: 0
B64: March | D64: ='6. Historical Wholesale'!D64 -> 0 | E64: 0 | F64: 0 | H64: ='6. Historical Wholesale'!H64 -> 0 | I64: 0 | J64: 0 | L64: ='6. Historical Wholesale'!L64 -> 0 | M64: 0 | N64: 0 | P64: 0
B65: April | D65: ='6. Historical Wholesale'!D65 -> 0 | E65: 0 | F65: 0 | H65: ='6. Historical Wholesale'!H65 -> 0 | I65: 0 | J65: 0 | L65: ='6. Historical Wholesale'!L65 -> 0 | M65: 0 | N65: 0 | P65: 0
B66: May | D66: ='6. Historical Wholesale'!D66 -> 0 | E66: 0 | F66: 0 | H66: ='6. Historical Wholesale'!H66 -> 0 | I66: 0 | J66: 0 | L66: ='6. Historical Wholesale'!L66 -> 0 | M66: 0 | N66: 0 | P66: 0
B67: June | D67: ='6. Historical Wholesale'!D67 -> 0 | E67: 0 | F67: 0 | H67: ='6. Historical Wholesale'!H67 -> 0 | I67: 0 | J67: 0 | L67: ='6. Historical Wholesale'!L67 -> 0 | M67: 0 | N67: 0 | P67: 0
B68: July | D68: ='6. Historical Wholesale'!D68 -> 0 | E68: 0 | F68: 0 | H68: ='6. Historical Wholesale'!H68 -> 0 | I68: 0 | J68: 0 | L68: ='6. Historical Wholesale'!L68 -> 0 | M68: 0 | N68: 0 | P68: 0
B69: August | D69: ='6. Historical Wholesale'!D69 -> 0 | E69: 0 | F69: 0 | H69: ='6. Historical Wholesale'!H69 -> 0 | I69: 0 | J69: 0 | L69: ='6. Historical Wholesale'!L69 -> 0 | M69: 0 | N69: 0 | P69: 0
B70: September | D70: ='6. Historical Wholesale'!D70 -> 0 | E70: 0 | F70: 0 | H70: ='6. Historical Wholesale'!H70 -> 0 | I70: 0 | J70: 0 | L70: ='6. Historical Wholesale'!L70 -> 0 | M70: 0 | N70: 0 | P70: 0
B71: October | D71: ='6. Historical Wholesale'!D71 -> 0 | E71: 0 | F71: 0 | H71: ='6. Historical Wholesale'!H71 -> 0 | I71: 0 | J71: 0 | L71: ='6. Historical Wholesale'!L71 -> 0 | M71: 0 | N71: 0 | P71: 0
B72: November | D72: ='6. Historical Wholesale'!D72 -> 0 | E72: 0 | F72: 0 | H72: ='6. Historical Wholesale'!H72 -> 0 | I72: 0 | J72: 0 | L72: ='6. Historical Wholesale'!L72 -> 0 | M72: 0 | N72: 0 | P72: 0
B73: December | D73: ='6. Historical Wholesale'!D73 -> 0 | E73: 0 | F73: 0 | H73: ='6. Historical Wholesale'!H73 -> 0 | I73: 0 | J73: 0 | L73: ='6. Historical Wholesale'!L73 -> 0 | M73: 0 | N73: 0 | P73: 0
B75: Total | D75: =SUM(D62:D73) -> 0 | E75: =IF(D75<>0,F75/D75,0) -> 0 | F75: =SUM(F62:F73) -> 0 | H75: =SUM(H62:H73) -> 0 | I75: =IF(H75<>0,J75/H75,0) -> 0 | J75: =SUM(J62:J73) -> 0 | L75: =SUM(L62:L73) -> 0 | M75: =IF(L75<>0,N75/L75,0) -> 0 | N75: =SUM(N62:N73) -> 0 | P75: =SUM(P62:P73) -> 0
B77: ='6. Historical Wholesale'!B77 -> Add Extra Host Here (II) | D77: Network | H77: Line Connection | L77: Transformation Connection | P77: Total Line
B79: Month | D79: Units Billed | E79: Rate | F79: Amount | H79: Units Billed | I79: Rate | J79: Amount | L79: Units Billed | M79: Rate | N79: Amount | P79: Amount
B81: January | D81: ='6. Historical Wholesale'!D81 -> 0 | E81: ='5. UTRs and Sub-Transmission'!J66 -> 0 | F81: =D81*E81 -> 0 | H81: ='6. Historical Wholesale'!H81 -> 0 | I81: ='5. UTRs and Sub-Transmission'!J68 -> 0 | J81: =H81*I81 -> 0 | L81: ='6. Historical Wholesale'!L81 -> 0 | M81: ='5. UTRs and Sub-Transmission'!J70 -> 0 | N81: =L81*M81 -> 0 | P81: =J81+N81 -> 0
B82: February | D82: ='6. Historical Wholesale'!D82 -> 0 | E82: =E81 -> 0 | F82: 0 | H82: ='6. Historical Wholesale'!H82 -> 0 | I82: =I81 -> 0 | J82: 0 | L82: ='6. Historical Wholesale'!L82 -> 0 | M82: =M81 -> 0 | N82: 0 | P82: 0
B83: March | D83: ='6. Historical Wholesale'!D83 -> 0 | E83: 0 | F83: 0 | H83: ='6. Historical Wholesale'!H83 -> 0 | I83: 0 | J83: 0 | L83: ='6. Historical Wholesale'!L83 -> 0 | M83: 0 | N83: 0 | P83: 0
B84: April | D84: ='6. Historical Wholesale'!D84 -> 0 | E84: 0 | F84: 0 | H84: ='6. Historical Wholesale'!H84 -> 0 | I84: 0 | J84: 0 | L84: ='6. Historical Wholesale'!L84 -> 0 | M84: 0 | N84: 0 | P84: 0
B85: May | D85: ='6. Historical Wholesale'!D85 -> 0 | E85: 0 | F85: 0 | H85: ='6. Historical Wholesale'!H85 -> 0 | I85: 0 | J85: 0 | L85: ='6. Historical Wholesale'!L85 -> 0 | M85: 0 | N85: 0 | P85: 0
B86: June | D86: ='6. Historical Wholesale'!D86 -> 0 | E86: 0 | F86: 0 | H86: ='6. Historical Wholesale'!H86 -> 0 | I86: 0 | J86: 0 | L86: ='6. Historical Wholesale'!L86 -> 0 | M86: 0 | N86: 0 | P86: 0
B87: July | D87: ='6. Historical Wholesale'!D87 -> 0 | E87: 0 | F87: 0 | H87: ='6. Historical Wholesale'!H87 -> 0 | I87: 0 | J87: 0 | L87: ='6. Historical Wholesale'!L87 -> 0 | M87: 0 | N87: 0 | P87: 0
B88: August | D88: ='6. Historical Wholesale'!D88 -> 0 | E88: 0 | F88: 0 | H88: ='6. Historical Wholesale'!H88 -> 0 | I88: 0 | J88: 0 | L88: ='6. Historical Wholesale'!L88 -> 0 | M88: 0 | N88: 0 | P88: 0
B89: September | D89: ='6. Historical Wholesale'!D89 -> 0 | E89: 0 | F89: 0 | H89: ='6. Historical Wholesale'!H89 -> 0 | I89: 0 | J89: 0 | L89: ='6. Historical Wholesale'!L89 -> 0 | M89: 0 | N89: 0 | P89: 0
B90: October | D90: ='6. Historical Wholesale'!D90 -> 0 | E90: 0 | F90: 0 | H90: ='6. Historical Wholesale'!H90 -> 0 | I90: 0 | J90: 0 | L90: ='6. Historical Wholesale'!L90 -> 0 | M90: 0 | N90: 0 | P90: 0
B91: November | D91: ='6. Historical Wholesale'!D91 -> 0 | E91: 0 | F91: 0 | H91: ='6. Historical Wholesale'!H91 -> 0 | I91: 0 | J91: 0 | L91: ='6. Historical Wholesale'!L91 -> 0 | M91: 0 | N91: 0 | P91: 0
B92: December | D92: ='6. Historical Wholesale'!D92 -> 0 | E92: 0 | F92: 0 | H92: ='6. Historical Wholesale'!H92 -> 0 | I92: 0 | J92: 0 | L92: ='6. Historical Wholesale'!L92 -> 0 | M92: 0 | N92: 0 | P92: 0
B94: Total | D94: =SUM(D81:D92) -> 0 | E94: =IF(D94<>0,F94/D94,0) -> 0 | F94: =SUM(F81:F92) -> 0 | H94: =SUM(H81:H92) -> 0 | I94: =IF(H94<>0,J94/H94,0) -> 0 | J94: =SUM(J81:J92) -> 0 | L94: =SUM(L81:L92) -> 0 | M94: =IF(L94<>0,N94/L94,0) -> 0 | N94: =SUM(N81:N92) -> 0 | P94: =SUM(P81:P92) -> 0
B96: Total | D96: Network | H96: Line Connection | L96: Transformation Connection | P96: Total Line
B98: Month | D98: Units Billed | E98: Rate | F98: Amount | H98: Units Billed | I98: Rate | J98: Amount | L98: Units Billed | M98: Rate | N98: Amount | P98: Amount
B100: January | D100: =D24+D43+D62+D81 -> 23097.46 | E100: =IF(D100<>0,F100/D100,0) -> 3.599693534 | F100: =F24+F43+F62+F81 -> 83143.77742 | H100: =H24+H43+H62+H81 -> 23722.46 | I100: =IF(H100<>0,J100/H100,0) -> 0.8533413519 | J100: =J24+J43+J62+J81 -> 20243.35609 | L100: =L24+L43+L62+L81 -> 8237 | M100: =IF(L100<>0,N100/L100,0) -> 2.02 | N100: =N24+N43+N62+N81 -> 16638.74 | P100: =J100+N100 -> 36882.09609
B101: February | D101: =D25+D44+D63+D82 -> 22887.86 | E101: 3.593886159 | F101: 82256.36326 | H101: =H25+H44+H63+H82 -> 23700.86 | I101: 0.8518863968 | J101: =J25+J44+J63+J82 -> 20190.44023 | L101: =L25+L44+L63+L82 -> 7755 | M101: 2.02 | N101: =N25+N44+N63+N82 -> 15665.1 | P101: 35855.54023
B102: March | D102: 21244.13 | E102: 3.59645836 | F102: 76403.62895 | H102: =H26+H45+H64+H83 -> 21526.37 | I102: 0.8518322628 | J102: =J26+J45+J64+J83 -> 18336.85647 | L102: =L26+L45+L64+L83 -> 6892 | M102: 2.02 | N102: =N26+N45+N64+N83 -> 13921.84 | P102: 32258.69647
B103: April | D103: 17039.09 | E103: 3.59017972 | F103: 61173.39536 | H103: =H27+H46+H65+H84 -> 19455.94 | I103: 0.8523491054 | J103: =J27+J46+J65+J84 -> 16583.25305 | L103: =L27+L46+L65+L84 -> 5927 | M103: 2.02 | N103: =N27+N46+N65+N84 -> 11972.54 | P103: 28555.79305
B104: May | D104: 16389 | E104: 3.597597364 | F104: 58961.0232 | H104: =H28+H47+H66+H85 -> 18260.09 | I104: 0.8541095536 | J104: =J28+J47+J66+J85 -> 15596.11732 | L104: =L28+L47+L66+L85 -> 5521 | M104: 2.02 | N104: =N28+N47+N66+N85 -> 11152.42 | P104: 26748.53732
B105: June | D105: 16680 | E105: 3.600798993 | F105: 60061.3272 | H105: =H29+H48+H67+H86 -> 18333.97 | I105: 0.854719563 | J105: =J29+J48+J67+J86 -> 15670.40283 | L105: =L29+L48+L67+L86 -> 5719 | M105: 2.02 | N105: =N29+N48+N67+N86 -> 11552.38 | P105: 27222.78283
B106: July | D106: 18836 | E106: 3.608187598 | F106: 67963.8216 | H106: =H30+H49+H68+H87 -> 19719.14 | I106: 0.8559581033 | J106: =J30+J49+J68+J87 -> 16878.75767 | L106: =L30+L49+L68+L87 -> 6911 | M106: 2.02 | N106: =N30+N49+N68+N87 -> 13960.22 | P106: 30838.97767
B107: August | D107: 18121 | E107: 3.591662381 | F107: 65084.514 | H107: =H31+H50+H69+H88 -> 19311.29 | I107: 0.8518057281 | J107: =J31+J50+J69+J88 -> 16449.46744 | L107: =L31+L50+L69+L88 -> 6059 | M107: 2.02 | N107: =N31+N50+N69+N88 -> 12239.18 | P107: 28688.64744
B108: September | D108: 17188 | E108: 3.598317221 | F108: 61847.8764 | H108: =H32+H51+H70+H89 -> 19795 | I108: 0.8537486689 | J108: =J32+J51+J70+J89 -> 16899.9549 | L108: =L32+L51+L70+L89 -> 6504 | M108: 2.02 | N108: =N32+N51+N70+N89 -> 13138.08 | P108: 30038.0349
B109: October | D109: 17640 | E109: 3.592396327 | F109: 63369.8712 | H109: =H33+H52+H71+H90 -> 19321 | I109: 0.852489012 | J109: =J33+J52+J71+J90 -> 16470.9402 | L109: =L33+L52+L71+L90 -> 5908 | M109: 2.02 | N109: =N33+N52+N71+N90 -> 11934.16 | P109: 28405.1002
B110: November | D110: 19320 | E110: 3.605256708 | F110: 69653.5596 | H110: =H34+H53+H72+H91 -> 20288 | I110: 0.855209932 | J110: =J34+J53+J72+J91 -> 17350.4991 | L110: =L34+L53+L72+L91 -> 6673 | M110: 2.02 | N110: =N34+N53+N72+N91 -> 13479.46 | P110: 30829.9591
B111: December | D111: 19840 | E111: 3.601943649 | F111: 71462.562 | H111: =H35+H54+H73+H92 -> 21687 | I111: 0.8545712685 | J111: =J35+J54+J73+J92 -> 18533.0871 | L111: =L35+L54+L73+L92 -> 7315 | M111: 2.02 | N111: =N35+N54+N73+N92 -> 14776.3 | P111: 33309.3871
B113: Total | D113: =SUM(D100:D111) -> 228282.54 | E113: =IF(D113<>0,F113/D113,0) -> 3.59809261 | F113: =SUM(F100:F111) -> 821381.7202 | H113: =SUM(H100:H111) -> 245121.12 | I113: =IF(H113<>0,J113/H113,0) -> 0.8534684094 | J113: =SUM(J100:J111) -> 209203.1324 | L113: =SUM(L100:L111) -> 79421 | M113: =IF(L113<>0,N113/L113,0) -> 2.02 | N113: =SUM(N100:N111) -> 160430.42 | P113: =SUM(P100:P111) -> 369633.5524
N115: Low Voltage Switchgear Credit (if applicable) | P115: ='5. UTRs and Sub-Transmission'!J75 -> 0
N117: Total including deduction for Low Voltage Switchgear Credit | P117: =P113+P115 -> 369633.5524

Sheet 9. RTSR Rates to Forecast
A13: The purpose of this sheet is to re-align the current RTS Network Rates to recover current wholesale network costs.
A15: Rate Class | B15: Rate Description | C15: Unit | D15: Current RTSR-Network | E15: Loss Adjusted Billed kWh | F15: Billed kW | G15: Billed Amount | H15: Billed Amount % | I15: Current Wholesale Billing | J15: Adjusted RTSR Network
A17: Residential | B17: RTSR - Network | C17: kWh | D17: 0.0059 | E17: 44656814.82 | G17: =ROUND(D17*E17, 2) -> 263475.21 | H17: =G17/779063.5 -> 0.3381947813 | I17: =H17*total_current_wholesale_network -> 277893.6071 | J17: =IF(ISERROR(I17/E17), 0, I17/E17) -> 0.006222871206
A18: General Service Less Than 50 kW | B18: RTSR - Network | C18: kWh | D18: 0.0056 | E18: 21223340.04 | G18: =ROUND(D18*E18, 2) -> 118850.7 | H18: =G18/779063.5 -> 0.1525558571 | I18: =H18*total_current_wholesale_network -> 125354.6766 | J18: =IF(ISERROR(I18/E18), 0, I18/E18) -> 0.00590645376
A19: General Service 50 to 4,999 kW | B19: RTSR - Network | C19: kW | D19: 2.2317 | F19: 175839 | G19: =ROUND(D19*F19, 2) -> 392419.9 | H19: =G19/779063.5 -> 0.5037072074 | I19: =H19*total_current_wholesale_network -> 413894.6564 | J19: =IF(ISERROR(I19/F19), 0, I19/F19) -> 2.353827401
A20: Unmetered Scattered Load | B20: RTSR - Network | C20: kWh | D20: 0.0056 | E20: 175883.8914 | G20: =ROUND(D20*E20, 2) -> 984.95 | H20: =G20/779063.5 -> 0.00126427435 | I20: =H20*total_current_wholesale_network -> 1038.850328 | J20: =IF(ISERROR(I20/E20), 0, I20/E20) -> 0.005906455217
A21: Street Lighting | B21: RTSR - Network | C21: kW | D21: 1.6832 | F21: 1980 | G21: =ROUND(D21*F21, 2) -> 3332.74 | H21: =G21/779063.5 -> 0.004277879788 | I21: =H21*total_current_wholesale_network -> 3515.120607 | J21: =IF(ISERROR(I21/F21), 0, I21/F21) -> 1.775313438
A23: The purpose of this table is to re-align the current RTS Connection Rates to recover current wholesale connection costs.
A24: Rate Class | B24: Rate Description | C24: Unit | D24: Current RTSR-Connection | E24: Loss Adjusted Billed kWh | F24: Billed kW | G24: Billed Amount | H24: Billed Amount % | I24: Current Wholesale Billing | J24: Adjusted RTSR-Connection
A26: Residential | B26: RTSR - Connection | C26: kWh | D26: 0.0027 | E26: 44656814.82 | G26: =ROUND(D26*E26, 2) -> 120573.4 | H26: =G26/351771.72 -> 0.3427603561 | I26: =H26*Total_Current_Wholesale_Lineplus -> 126708.8412 | J26: =IF(ISERROR(I26/E26), 0, I26/E26) -> 0.002837390928
A27: General Service Less Than 50 kW | B27: RTSR - Connection | C27: kWh | D27: 0.0026 | E27: 21223340.04 | G27: =ROUND(D27*E27, 2) -> 55180.68 | H27: =G27/351771.72 -> 0.156865026 | I27: =H27*Total_Current_Wholesale_Lineplus -> 57988.57809 | J27: =IF(ISERROR(I27/E27), 0, I27/E27) -> 0.002732302173
A28: General Service 50 to 4,999 kW | B28: RTSR - Connection | C28: kW | D28: 0.9898 | F28: 175839 | G28: =ROUND(D28*F28, 2) -> 174045.44 | H28: =G28/351771.72 -> 0.4947681411 | I28: =H28*Total_Current_Wholesale_Lineplus -> 182901.8343 | J28: =IF(ISERROR(I28/F28), 0, I28/F28) -> 1.040166483
A29: Unmetered Scattered Load | B29: RTSR - Connection | C29: kWh | D29: 0.0026 | E29: 175883.8914 | G29: =ROUND(D29*E29, 2) -> 457.3 | H29: =G29/351771.72 -> 0.001299990801 | I29: =H29*Total_Current_Wholesale_Lineplus -> 480.5699524 | J29: =IF(ISERROR(I29/E29), 0, I29/E29) -> 0.002732313622
A30: Street Lighting | B30: RTSR - Connection | C30: kW | D30: 0.7651 | F30: 1980 | G30: =ROUND(D30*F30, 2) -> 1514.9 | H30: =G30/351771.72 -> 0.004306486036 | I30: =H30*Total_Current_Wholesale_Lineplus -> 1591.986488 | J30: =IF(ISERROR(I30/F30), 0, I30/F30) -> 0.8040335797
A32: The purpose of this table is to update the re-aligned RTS Network Rates to recover future wholesale network costs.
A33: Rate Class | B33: Rate Description | C33: Unit | D33: Adjusted RTSR-Network | E33: Loss Adjusted Billed kWh | F33: Billed kW | G33: Billed Amount | H33: Billed Amount % | I33: Current Wholesale Billing | J33: Proposed RTSR-Network
A35: Residential | B35: RTSR - Network | C35: kWh | D35: 0.006222871206 | E35: 44656814.82 | G35: =IF(ISERROR(D35*E35), 0, ROUND(D35*E35, 2)) -> 277893.61 | H35: =G35/821696.92 -> 0.3381947811 | I35: =H35*forecast_wholesale_network -> 277787.0111 | J35: =IF(ISERROR(I35/E35), 0, I35/E35) -> 0.006220484201
A36: General Service Less Than 50 kW | B36: RTSR - Network | C36: kWh | D36: 0.00590645376 | E36: 21223340.04 | G36: =IF(ISERROR(D36*E36), 0, ROUND(D36*E36, 2)) -> 125354.68 | H36: =G36/821696.92 -> 0.1525558596 | I36: =H36*forecast_wholesale_network -> 125306.5944 | J36: =IF(ISERROR(I36/E36), 0, I36/E36) -> 0.005904188229
A37: General Service 50 to 4,999 kW | B37: RTSR - Network | C37: kW | D37: 2.353827401 | F37: 175839 | G37: =ROUND(D37*F37, 2) -> 413894.66 | H37: =G37/821696.92 -> 0.5037072063 | I37: =H37*forecast_wholesale_network -> 413735.8916 | J37: =IF(ISERROR(I37/F37), 0, I37/F37) -> 2.352924502
A38: Unmetered Scattered Load | B38: RTSR - Network | C38: kWh | D38: 0.005906455217 | E38: 175883.8914 | G38: =IF(ISERROR(D38*E38), 0, ROUND(D38*E38, 2)) -> 1038.85 | H38: =G38/821696.92 -> 0.001264273937 | I38: =H38*forecast_wholesale_network -> 1038.451501 | J38: =IF(ISERROR(I38/E38), 0, I38/E38) -> 0.005904187659
A39: Street Lighting | B39: RTSR - Network | C39: kW | D39: 1.775313438 | F39: 1980 | G39: =ROUND(D39*F39, 2) -> 3515.12 | H39: =G39/821696.92 -> 0.004277879002 | I39: =H39*forecast_wholesale_network -> 3513.771613 | J39: =IF(ISERROR(I39/F39), 0, I39/F39) -> 1.774632128
A41: The purpose of this table is to update the re-aligned RTS Connection Rates to recover future wholesale connection costs.
A42: Rate Class | B42: Rate Description | C42: Unit | D42: Adjusted RTSR-Connection | E42: Loss Adjusted Billed kWh | F42: Billed kW | G42: Billed Amount | H42: Billed Amount % | I42: Current Wholesale Billing | J42: Proposed RTSR-Connection
A44: Residential | B44: RTSR - Connection | C44: kWh | D44: 0.002837390928 | E44: 44656814.82 | G44: =ROUND(D44*E44, 2) -> 126708.84 | H44: =G44/369671.81 -> 0.3427603528 | I44: =H44*forecast_wholesale_lineplus -> 126695.7268 | J44: =IF(ISERROR(I44/E44), 0, I44/E44) -> 0.002837097256
A45: General Service Less Than 50 kW | B45: RTSR - Connection | C45: kWh | D45: 0.002732302173 | E45: 21223340.04 | G45: =ROUND(D45*E45, 2) -> 57988.58 | H45: =G45/369671.81 -> 0.1568650312 | I45: =H45*forecast_wholesale_lineplus -> 57982.57872 | J45: =IF(ISERROR(I45/E45), 0, I45/E45) -> 0.002732019495
A46: General Service 50 to 4,999 kW | B46: RTSR - Connection | C46: kW | D46: 1.040166483 | F46: 175839 | G46: =ROUND(D46*F46, 2) -> 182901.83 | H46: =G46/369671.81 -> 0.4947681296 | I46: =H46*forecast_wholesale_lineplus -> 182882.9014 | J46: =IF(ISERROR(I46/F46), 0, I46/F46) -> 1.040058811
A47: Unmetered Scattered Load | B47: RTSR - Connection | C47: kWh | D47: 0.002732313622 | E47: 175883.8914 | G47: =ROUND(D47*E47, 2) -> 480.57 | H47: =G47/369671.81 -> 0.00129999093 | I47: =H47*forecast_wholesale_lineplus -> 480.5202655 | J47: =IF(ISERROR(I47/E47), 0, I47/E47) -> 0.002732031124
A48: Street Lighting | B48: RTSR - Connection | C48: kW | D48: 0.8040335797 | F48: 1980 | G48: =ROUND(D48*F48, 2) -> 1591.99 | H48: =G48/369671.81 -> 0.004306495537 | I48: =H48*forecast_wholesale_lineplus -> 1591.825244 | J48: =IF(ISERROR(I48/F48), 0, I48/F48) -> 0.8039521433

Sheet hidden1 (hidden)
A1: =IF('3. Rate Classes'!L17=1, '3. Rate Classes'!C17, "") -> Residential | B1: 1
A2: =IF('3. Rate Classes'!L18=1, '3. Rate Classes'!C18, "") -> General Service Less Than 50 kW | B2: 2
A3: =IF('3. Rate Classes'!L19=1, '3. Rate Classes'!C19, "") -> General Service 50 to 4,999 kW | B3: 3
A4: =IF('3. Rate Classes'!L20=1, '3. Rate Classes'!C20, "") -> Unmetered Scattered Load | B4: 4
A5: =IF('3. Rate Classes'!L21=1, '3. Rate Classes'!C21, "") -> Street Lighting | B5: 5
A6: =IF('3. Rate Classes'!L22=1, '3. Rate Classes'!C22, "") ->  | B6: 6
A7: =IF('3. Rate Classes'!L23=1, '3. Rate Classes'!C23, "") ->  | B7: 7
A8: =IF('3. Rate Classes'!L24=1, '3. Rate Classes'!C24, "") ->  | B8: 8
A9: =IF('3. Rate Classes'!L25=1, '3. Rate Classes'!C25, "") ->  | B9: 9
A10: =IF('3. Rate Classes'!L26=1, '3. Rate Classes'!C26, "") ->  | B10: 10
A11: =IF('3. Rate Classes'!L27=1, '3. Rate Classes'!C27, "") ->  | B11: 11
A12: =IF('3. Rate Classes'!L28=1, '3. Rate Classes'!C28, "") ->  | B12: 12
A13: =IF('3. Rate Classes'!L29=1, '3. Rate Classes'!C29, "") ->  | B13: 13
A14: =IF('3. Rate Classes'!L30=1, '3. Rate Classes'!C30, "") ->  | B14: 14
A15: =IF('3. Rate Classes'!L31=1, '3. Rate Classes'!C31, "") ->  | B15: 15
A16: =IF('3. Rate Classes'!L32=1, '3. Rate Classes'!C32, "") ->  | B16: 16
A17: =IF('3. Rate Classes'!L33=1, '3. Rate Classes'!C33, "") ->  | B17: 17
A18: =IF('3. Rate Classes'!L34=1, '3. Rate Classes'!C34, "") ->  | B18: 18
A19: =IF('3. Rate Classes'!L35=1, '3. Rate Classes'!C35, "") ->  | B19: 19
A20: =IF('3. Rate Classes'!L36=1, '3. Rate Classes'!C36, "") ->  | B20: 20
A21: =IF('3. Rate Classes'!L37=1, '3. Rate Classes'!C37, "") ->  | B21: 21
A22: =IF('3. Rate Classes'!L38=1, '3. Rate Classes'!C38, "") ->  | B22: 22
